[Event "Vener-dì-Lampo"]
[Site "Chess.com"]
[Date "2020.04.24"]
[Round "2"]
[White "sirmale49"]
[Black "SpessoInstabile"]
[Result "1-0"]
[WhiteElo "1337"]
[BlackElo "1366"]
[TimeControl "300+2"]
[EndTime "11:53:59 PDT"]
[Termination "sirmale49 ha vinto per scaccomatto"]

1. f4 {[%clk 0:05:01.8]} 1... c5 {[%clk 0:05:00.2]} 2. Nf3 {[%clk 0:05:00]} 2...
e6 {[%clk 0:05:01.4]} 3. e4 {[%clk 0:05:00.2]} 3... a6 {[%clk 0:05:02.3]} 4. g3
{[%clk 0:05:00.7]} 4... b5 {[%clk 0:05:03.5]} 5. Bg2 {[%clk 0:05:00.9]} 5... Bb7
{[%clk 0:05:04.6]} 6. d3 {[%clk 0:04:59]} 6... Qc7 {[%clk 0:05:06.2]} 7. O-O
{[%clk 0:04:52.8]} 7... d6 {[%clk 0:05:07.5]} 8. Nc3 {[%clk 0:04:49.8]} 8... Nd7
{[%clk 0:05:08.4]} 9. b3 {[%clk 0:04:39.1]} 9... h6 {[%clk 0:05:08.9]} 10. Be3
{[%clk 0:04:33]} 10... Ngf6 {[%clk 0:05:09.7]} 11. h3 {[%clk 0:04:01.2]} 11...
Be7 {[%clk 0:05:09.2]} 12. g4 {[%clk 0:03:48.5]} 12... g6 {[%clk 0:05:09.6]} 13.
Re1 {[%clk 0:03:08]} 13... O-O-O {[%clk 0:05:02.6]} 14. a4 {[%clk 0:02:52.7]}
14... b4 {[%clk 0:05:02.9]} 15. Ne2 {[%clk 0:02:49.7]} 15... e5 {[%clk
0:04:50.4]} 16. c3 {[%clk 0:02:29.2]} 16... bxc3 {[%clk 0:04:50.5]} 17. Nxc3
{[%clk 0:02:28.2]} 17... exf4 {[%clk 0:04:51.7]} 18. Bxf4 {[%clk 0:02:23.5]}
18... g5 {[%clk 0:04:52.9]} 19. Be3 {[%clk 0:02:21.7]} 19... Nh7 {[%clk
0:04:52.5]} 20. Rc1 {[%clk 0:02:12.6]} 20... Kb8 {[%clk 0:04:53.5]} 21. d4
{[%clk 0:01:53.1]} 21... cxd4 {[%clk 0:04:43.8]} 22. Qxd4 {[%clk 0:01:46.5]}
22... Bf6 {[%clk 0:04:32.2]} 23. Qa7+ {[%clk 0:01:40.9]} 23... Kc8 {[%clk
0:04:32.7]} 24. Nd5 {[%clk 0:01:39.5]} 24... Qxc1 {[%clk 0:04:28.4]} 25. Rxc1+
{[%clk 0:01:37.1]} 25... Nc5 {[%clk 0:04:29.2]} 26. Rxc5+ {[%clk 0:01:30.8]}
26... dxc5 {[%clk 0:04:29.9]} 27. Qxc5+ {[%clk 0:01:30.5]} 27... Kb8 {[%clk
0:04:28.5]} 28. Qa7+ {[%clk 0:01:09.7]} 28... Kc8 {[%clk 0:04:29.1]} 29. Nb6+
{[%clk 0:01:09.4]} 29... Kc7 {[%clk 0:04:26.6]} 30. Nd5+ {[%clk 0:01:03.7]}
30... Kc8 {[%clk 0:04:19.7]} 31. Qc5+ {[%clk 0:00:58.9]} 31... Kb8 {[%clk
0:04:20.1]} 32. Nb6 {[%clk 0:00:53.3]} 32... Rd1+ {[%clk 0:03:55.4]} 33. Kh2
{[%clk 0:00:51.3]} 33... Rhd8 {[%clk 0:03:51.1]} 34. e5 {[%clk 0:00:48.8]} 34...
Bh8 {[%clk 0:03:35.9]} 35. Nd4 {[%clk 0:00:46]} 35... Bxg2 {[%clk 0:03:34.5]}
36. Kxg2 {[%clk 0:00:44.3]} 36... R8xd4 {[%clk 0:03:28.3]} 37. Bxd4 {[%clk
0:00:43.6]} 37... Rd2+ {[%clk 0:03:26.8]} 38. Kf3 {[%clk 0:00:41.4]} 38... Rd3+
{[%clk 0:03:24.1]} 39. Ke4 {[%clk 0:00:41]} 39... Rxb3 {[%clk 0:03:15.5]} 40.
Qc8+ {[%clk 0:00:39.8]} 40... Ka7 {[%clk 0:03:14.4]} 41. Qa8# {[%clk 0:00:39.2]}
1-0

[Event "Vener-dì-Lampo"]
[Site "Chess.com"]
[Date "2020.04.24"]
[Round "3"]
[White "ottovolante"]
[Black "sirmale49"]
[Result "0-1"]
[WhiteElo "1155"]
[BlackElo "1341"]
[TimeControl "300+2"]
[EndTime "12:02:26 PDT"]
[Termination "sirmale49 ha vinto per scaccomatto"]

1. d4 {[%clk 0:05:00.4]} 1... d5 {[%clk 0:03:25.7]} 2. Nf3 {[%clk 0:04:55.3]}
2... Nc6 {[%clk 0:03:25.3]} 3. Nc3 {[%clk 0:04:56.1]} 3... Bf5 {[%clk
0:03:25.4]} 4. h3 {[%clk 0:04:52.4]} 4... Nb4 {[%clk 0:03:25.6]} 5. Kd2 {[%clk
0:04:19.1]} 5... Nxc2 {[%clk 0:03:21.7]} 6. Rb1 {[%clk 0:04:16.1]} 6... Nb4
{[%clk 0:03:13.2]} 7. Ra1 {[%clk 0:04:12.7]} 7... Nf6 {[%clk 0:03:08.2]} 8. a3
{[%clk 0:04:10.1]} 8... Nc6 {[%clk 0:02:42.8]} 9. e3 {[%clk 0:04:04.3]} 9...
Ne4+ {[%clk 0:02:39.6]} 10. Nxe4 {[%clk 0:04:03.7]} 10... Bxe4 {[%clk
0:02:36.7]} 11. Bd3 {[%clk 0:04:00.5]} 11... Bxd3 {[%clk 0:01:57.6]} 12. Kxd3
{[%clk 0:04:00.2]} 12... Qd6 {[%clk 0:01:58.2]} 13. Ke2 {[%clk 0:03:56.7]} 13...
O-O-O {[%clk 0:01:57.5]} 14. Bd2 {[%clk 0:03:57]} 14... e5 {[%clk 0:01:57.3]}
15. Kf1 {[%clk 0:03:51.1]} 15... exd4 {[%clk 0:01:54.3]} 16. Nxd4 {[%clk
0:03:51.5]} 16... Nxd4 {[%clk 0:01:54.6]} 17. exd4 {[%clk 0:03:52.3]} 17... Be7
{[%clk 0:01:39.5]} 18. Bb4 {[%clk 0:03:46.3]} 18... Qe6 {[%clk 0:01:37.4]} 19.
Bxe7 {[%clk 0:03:44]} 19... Qxe7 {[%clk 0:01:38]} 20. Rc1 {[%clk 0:03:41.6]}
20... Rhe8 {[%clk 0:01:35.5]} 21. Qc2 {[%clk 0:03:41.9]} 21... Rd6 {[%clk
0:01:26.6]} 22. Kg1 {[%clk 0:03:42.2]} 22... Re6 {[%clk 0:01:15.2]} 23. Kh2
{[%clk 0:03:40.8]} 23... Qd6+ {[%clk 0:01:15.9]} 24. g3 {[%clk 0:03:40.6]} 24...
Re2 {[%clk 0:01:08.3]} 25. Qd3 {[%clk 0:03:15.4]} 25... Rxf2+ {[%clk 0:01:07.5]}
26. Kg1 {[%clk 0:03:15.9]} 26... Ree2 {[%clk 0:00:55.7]} 27. Rf1 {[%clk
0:03:06.1]} 27... Rg2# {[%clk 0:00:55.1]} 0-1

[Event "Vener-dì-Lampo"]
[Site "Chess.com"]
[Date "2020.04.24"]
[Round "3"]
[White "mr6701"]
[Black "rob_fio"]
[Result "1-0"]
[WhiteElo "1970"]
[BlackElo "1747"]
[TimeControl "300+2"]
[EndTime "12:04:19 PDT"]
[Termination "mr6701 ha vinto per abbandono"]

1. e4 {[%clk 0:05:01.9]} 1... d6 {[%clk 0:05:01.3]} 2. d4 {[%clk 0:05:02.5]}
2... Nf6 {[%clk 0:05:02.8]} 3. Nc3 {[%clk 0:05:03.5]} 3... Nbd7 {[%clk
0:05:04.3]} 4. Nf3 {[%clk 0:05:01.2]} 4... e5 {[%clk 0:05:05.6]} 5. d5 {[%clk
0:05:00.6]} 5... c6 {[%clk 0:05:06.8]} 6. Bc4 {[%clk 0:04:59.6]} 6... c5 {[%clk
0:05:08]} 7. O-O {[%clk 0:04:58.8]} 7... a6 {[%clk 0:05:09.2]} 8. a4 {[%clk
0:04:59.4]} 8... h6 {[%clk 0:05:09.9]} 9. Re1 {[%clk 0:04:58.5]} 9... Be7 {[%clk
0:05:10.9]} 10. h3 {[%clk 0:04:53.8]} 10... Qc7 {[%clk 0:05:11.7]} 11. Nh4
{[%clk 0:04:53.5]} 11... Nf8 {[%clk 0:05:12]} 12. Nf5 {[%clk 0:04:53.3]} 12...
Bxf5 {[%clk 0:05:13.4]} 13. exf5 {[%clk 0:04:55]} 13... N8h7 {[%clk 0:05:13.5]}
14. f4 {[%clk 0:04:47]} 14... O-O {[%clk 0:05:13.4]} 15. fxe5 {[%clk 0:04:43.9]}
15... dxe5 {[%clk 0:05:14.1]} 16. Be3 {[%clk 0:04:31.2]} 16... Bd6 {[%clk
0:05:15]} 17. Qe2 {[%clk 0:04:18.9]} 17... Rfe8 {[%clk 0:05:11.4]} 18. Qf2
{[%clk 0:04:16.8]} 18... Rab8 {[%clk 0:05:10.8]} 19. Qh4 {[%clk 0:04:16.9]}
19... Qe7 {[%clk 0:05:06.2]} 20. Qf2 {[%clk 0:04:11.3]} 20... Kh8 {[%clk
0:05:00.4]} 21. b3 {[%clk 0:04:11.5]} 21... Ng8 {[%clk 0:04:44.1]} 22. Rad1
{[%clk 0:04:07.1]} 22... Qf6 {[%clk 0:04:44.1]} 23. Ne4 {[%clk 0:04:06.8]} 23...
Qe7 {[%clk 0:04:42.8]} 24. Nxd6 {[%clk 0:04:07.6]} 24... Qxd6 {[%clk 0:04:44.7]}
25. Bxc5 {[%clk 0:04:09]} 25... Qd8 {[%clk 0:04:42.4]} 26. d6 {[%clk 0:04:03.5]}
26... Qd7 {[%clk 0:04:40.8]} 27. Ba3 {[%clk 0:03:43.8]} 27... Ngf6 {[%clk
0:04:38.4]} 28. Rd3 {[%clk 0:03:39.6]} 28... b5 {[%clk 0:04:34.7]} 29. Bd5
{[%clk 0:03:29.1]} 29... Nxd5 {[%clk 0:04:32.3]} 30. Rxd5 {[%clk 0:03:31]} 30...
Nf6 {[%clk 0:04:33]} 31. Rdxe5 {[%clk 0:03:29.9]} 31... Rxe5 {[%clk 0:04:33.9]}
32. Rxe5 {[%clk 0:03:30.6]} 32... Re8 {[%clk 0:04:30]} 33. Rxe8+ {[%clk
0:03:22.9]} 33... Qxe8 {[%clk 0:04:31.9]} 34. axb5 {[%clk 0:03:21.3]} 34... axb5
{[%clk 0:04:32.3]} 35. c4 {[%clk 0:03:19.6]} 35... Qd7 {[%clk 0:04:32.2]} 36. c5
{[%clk 0:03:19.6]} 36... Qc6 {[%clk 0:04:29.1]} 37. Qf3 {[%clk 0:03:18.7]} 37...
Nd5 {[%clk 0:04:24.6]} 38. b4 {[%clk 0:03:12]} 38... Kg8 {[%clk 0:04:17.8]} 39.
f6 {[%clk 0:03:04.8]} 39... g6 {[%clk 0:04:15.8]} 40. Qe4 {[%clk 0:02:55.8]}
40... Kh7 {[%clk 0:04:15.8]} 41. Bc1 {[%clk 0:02:51.5]} 41... Qb7 {[%clk
0:04:03.2]} 42. h4 {[%clk 0:02:49.1]} 42... h5 {[%clk 0:04:03.4]} 43. Bd2 {[%clk
0:02:35.6]} 43... Kg8 {[%clk 0:04:00.9]} 44. Qe8+ {[%clk 0:02:24.5]} 44... Kh7
{[%clk 0:04:00.4]} 45. Be1 {[%clk 0:02:21.9]} 45... Nxf6 {[%clk 0:03:58.9]} 46.
Qd8 {[%clk 0:01:57.7]} 46... Qd5 {[%clk 0:03:36.9]} 47. Qxf6 {[%clk 0:01:49.8]}
47... Qd1 {[%clk 0:03:28.7]} 48. Qxf7+ {[%clk 0:01:46]} 48... Kh8 {[%clk
0:03:28.8]} 49. Qf2 {[%clk 0:01:45.5]} 49... Qd5 {[%clk 0:03:27.6]} 50. Qd2
{[%clk 0:01:40.4]} 50... Qa8 {[%clk 0:03:23.8]} 51. Qh6+ {[%clk 0:01:37.6]}
51... Kg8 {[%clk 0:03:24.9]} 52. Qxg6+ {[%clk 0:01:39.5]} 52... Kf8 {[%clk
0:03:26.3]} 53. Bc3 {[%clk 0:01:31.6]} 53... Qb7 {[%clk 0:03:25.4]} 54. Qg7+
{[%clk 0:01:27.6]} 54... Qxg7 {[%clk 0:03:26]} 55. Bxg7+ {[%clk 0:01:29.5]}
55... Ke8 {[%clk 0:03:25.9]} 56. Kf2 {[%clk 0:01:29.4]} 56... Kd7 {[%clk
0:03:27.2]} 57. Ke3 {[%clk 0:01:30.2]} 57... Kc6 {[%clk 0:03:28.3]} 58. Kf4
{[%clk 0:01:30.6]} 58... Kd7 {[%clk 0:03:29.6]} 59. Kg5 {[%clk 0:01:31.5]} 59...
Ke6 {[%clk 0:03:29.6]} 60. Kxh5 {[%clk 0:01:32.1]} 60... Kd7 {[%clk 0:03:30.7]}
61. Kg6 {[%clk 0:01:32.8]} 61... Kc6 {[%clk 0:03:31.1]} 62. h5 {[%clk
0:01:33.9]} 62... Kd7 {[%clk 0:03:32.4]} 63. h6 {[%clk 0:01:35]} 63... Kc6
{[%clk 0:03:33.7]} 64. h7 {[%clk 0:01:35.8]} 1-0

[Event "Vener-dì-Lampo"]
[Site "Chess.com"]
[Date "2020.04.24"]
[Round "3"]
[White "pedrak"]
[Black "BAKR1980"]
[Result "1-0"]
[WhiteElo "2001"]
[BlackElo "1605"]
[TimeControl "300+2"]
[EndTime "12:04:49 PDT"]
[Termination "pedrak ha vinto per abbandono"]

1. d4 {[%clk 0:05:01.9]} 1... Nf6 {[%clk 0:04:59.2]} 2. Nf3 {[%clk 0:05:01.9]}
2... d5 {[%clk 0:04:56.5]} 3. Bf4 {[%clk 0:05:01.3]} 3... Bg4 {[%clk 0:04:51.9]}
4. Nbd2 {[%clk 0:04:59.5]} 4... e6 {[%clk 0:04:45.5]} 5. c3 {[%clk 0:04:58.5]}
5... g6 {[%clk 0:04:42.5]} 6. Qb3 {[%clk 0:04:54.1]} 6... b6 {[%clk 0:04:41]} 7.
e3 {[%clk 0:04:53.4]} 7... Bg7 {[%clk 0:04:40.3]} 8. Ne5 {[%clk 0:04:34.5]} 8...
O-O {[%clk 0:04:23.1]} 9. Nxg4 {[%clk 0:04:32.9]} 9... Nxg4 {[%clk 0:04:23]} 10.
Be2 {[%clk 0:04:33.3]} 10... Nh6 {[%clk 0:04:18.7]} 11. O-O {[%clk 0:04:32.7]}
11... Nd7 {[%clk 0:04:10]} 12. Nf3 {[%clk 0:04:31.9]} 12... c5 {[%clk 0:04:07]}
13. Rfe1 {[%clk 0:04:25]} 13... c4 {[%clk 0:03:59.2]} 14. Qc2 {[%clk 0:04:25.1]}
14... Nf6 {[%clk 0:03:53.5]} 15. Ne5 {[%clk 0:04:20.2]} 15... a6 {[%clk
0:03:43.9]} 16. Bf3 {[%clk 0:04:11.5]} 16... Nd7 {[%clk 0:03:36.3]} 17. Nxd7
{[%clk 0:04:07.5]} 17... Qxd7 {[%clk 0:03:35.8]} 18. e4 {[%clk 0:04:07.9]} 18...
b5 {[%clk 0:03:19.4]} 19. Qd2 {[%clk 0:03:55.8]} 19... dxe4 {[%clk 0:02:52.2]}
20. Bxe4 {[%clk 0:03:55.8]} 20... Nf5 {[%clk 0:02:52.4]} 21. Bxa8 {[%clk
0:03:55.2]} 21... Rxa8 {[%clk 0:02:50.7]} 22. Be5 {[%clk 0:03:55.1]} 22... f6
{[%clk 0:02:48]} 23. Bf4 {[%clk 0:03:53.1]} 23... e5 {[%clk 0:02:47.1]} 24. Be3
{[%clk 0:03:50.5]} 24... exd4 {[%clk 0:02:43.5]} 25. Bxd4 {[%clk 0:03:46.7]}
25... Rd8 {[%clk 0:02:36.4]} 26. Rad1 {[%clk 0:03:45]} 26... b4 {[%clk
0:02:30.1]} 27. Be3 {[%clk 0:03:28]} 27... Qxd2 {[%clk 0:02:22.4]} 28. Rxd2
{[%clk 0:03:27.1]} 28... Re8 {[%clk 0:02:19]} 29. cxb4 {[%clk 0:03:25.2]} 29...
Nh6 {[%clk 0:02:06]} 30. Red1 {[%clk 0:03:20.6]} 30... f5 {[%clk 0:02:04.1]} 31.
Bd4 {[%clk 0:03:19.5]} 31... Bxd4 {[%clk 0:02:01.8]} 32. Rxd4 {[%clk 0:03:19.3]}
32... Kf7 {[%clk 0:02:02.7]} 33. h3 {[%clk 0:03:18.1]} 33... Ng8 {[%clk
0:01:58.3]} 34. Rxc4 {[%clk 0:03:17.2]} 34... Nf6 {[%clk 0:01:57.1]} 35. f3
{[%clk 0:03:14.7]} 35... Re7 {[%clk 0:01:51.9]} 36. a4 {[%clk 0:03:12]} 36...
Nh5 {[%clk 0:01:48.8]} 37. Kf2 {[%clk 0:03:09.3]} 37... Ng7 {[%clk 0:01:44.1]}
38. Rd2 {[%clk 0:03:02.2]} 38... Ne6 {[%clk 0:01:35]} 39. Re2 {[%clk 0:02:57.7]}
39... Rd7 {[%clk 0:01:33.6]} 40. Rc6 {[%clk 0:02:56.2]} 40... Nd4 {[%clk
0:01:31.3]} 41. Rxa6 {[%clk 0:02:51.9]} 41... Nxe2 {[%clk 0:01:31.5]} 42. Kxe2
{[%clk 0:02:52.7]} 42... Rd4 {[%clk 0:01:32.5]} 43. Rb6 {[%clk 0:02:51.2]} 43...
Rc4 {[%clk 0:01:33.2]} 44. Kd3 {[%clk 0:02:47.5]} 44... Rc1 {[%clk 0:01:33.4]}
45. a5 {[%clk 0:02:47.9]} 45... Rb1 {[%clk 0:01:32]} 46. Kc2 {[%clk 0:02:48]}
46... Ra1 {[%clk 0:01:29.5]} 47. a6 {[%clk 0:02:48]} 47... g5 {[%clk 0:01:29]}
48. Rb7+ {[%clk 0:02:48.4]} 48... Kg6 {[%clk 0:01:29.3]} 49. a7 {[%clk
0:02:49.2]} 49... Kh5 {[%clk 0:01:29.1]} 50. Rxh7+ {[%clk 0:02:48]} 50... Kg6
{[%clk 0:01:29.5]} 51. Rd7 {[%clk 0:02:46.5]} 51... Kh5 {[%clk 0:01:28.3]} 52.
b5 {[%clk 0:02:45.2]} 52... g4 {[%clk 0:01:27.9]} 53. hxg4+ {[%clk 0:02:45.5]}
53... fxg4 {[%clk 0:01:28.5]} 54. fxg4+ {[%clk 0:02:46.2]} 54... Kxg4 {[%clk
0:01:29.1]} 55. b6 {[%clk 0:02:47]} 55... Ra6 {[%clk 0:01:29]} 56. Rb7 {[%clk
0:02:42.7]} 56... Kg3 {[%clk 0:01:25]} 57. Rb8 {[%clk 0:02:43.1]} 57... Kh2
{[%clk 0:01:25.4]} 58. a8=Q {[%clk 0:02:43.4]} 58... Rxa8 {[%clk 0:01:23.6]} 59.
Rxa8 {[%clk 0:02:44]} 59... Kg1 {[%clk 0:01:24.4]} 60. b7 {[%clk 0:02:44.2]} 1-0

[Event "Vener-dì-Lampo"]
[Site "Chess.com"]
[Date "2020.04.24"]
[Round "3"]
[White "Mrtre7"]
[Black "SanSecondoPR"]
[Result "1-0"]
[WhiteElo "1440"]
[BlackElo "1283"]
[TimeControl "300+2"]
[EndTime "12:06:32 PDT"]
[Termination "Mrtre7 ha vinto per tempo"]

1. d4 {[%clk 0:05:01.9]} 1... d5 {[%clk 0:04:56.9]} 2. c4 {[%clk 0:05:02.3]}
2... e5 {[%clk 0:04:54.2]} 3. dxe5 {[%clk 0:04:59.2]} 3... d4 {[%clk 0:04:54.4]}
4. Nf3 {[%clk 0:04:58.5]} 4... Nc6 {[%clk 0:04:53.5]} 5. Nbd2 {[%clk 0:04:49.6]}
5... Bg4 {[%clk 0:04:51.5]} 6. h3 {[%clk 0:04:40.8]} 6... Bh5 {[%clk 0:04:47.6]}
7. g4 {[%clk 0:04:04.5]} 7... Bg6 {[%clk 0:04:46.8]} 8. Nb3 {[%clk 0:04:03.4]}
8... Be4 {[%clk 0:04:38.8]} 9. Bg2 {[%clk 0:03:39.1]} 9... Nge7 {[%clk
0:04:29.7]} 10. O-O {[%clk 0:03:39.4]} 10... h5 {[%clk 0:04:16.3]} 11. Nfxd4
{[%clk 0:03:09.8]} 11... Bxg2 {[%clk 0:04:13.2]} 12. Kxg2 {[%clk 0:03:10.3]}
12... hxg4 {[%clk 0:04:03.8]} 13. hxg4 {[%clk 0:03:09.8]} 13... Nxe5 {[%clk
0:03:44.5]} 14. f3 {[%clk 0:03:01.2]} 14... N7g6 {[%clk 0:03:39.5]} 15. Qc2
{[%clk 0:02:21.6]} 15... Qh4 {[%clk 0:03:23.7]} 16. Rg1 {[%clk 0:01:40.7]} 16...
Qh3+ {[%clk 0:03:20.6]} 17. Kf2 {[%clk 0:01:40.1]} 17... Be7 {[%clk 0:03:00]}
18. Nf5 {[%clk 0:01:33.2]} 18... Qh2+ {[%clk 0:02:42.9]} 19. Rg2 {[%clk
0:01:29.6]} 19... Bh4+ {[%clk 0:02:37]} 20. Nxh4 {[%clk 0:01:29.5]} 20... Qxh4+
{[%clk 0:02:32.9]} 21. Kf1 {[%clk 0:01:28.3]} 21... O-O-O {[%clk 0:02:23.9]} 22.
Qf5+ {[%clk 0:01:23.5]} 22... Kb8 {[%clk 0:02:15.3]} 23. Bg5 {[%clk 0:01:24.3]}
23... Qh1+ {[%clk 0:02:06.3]} 24. Rg1 {[%clk 0:01:24.4]} 24... Qh3+ {[%clk
0:02:04]} 25. Kf2 {[%clk 0:01:17.2]} 25... f6 {[%clk 0:01:47.7]} 26. Bf4 {[%clk
0:00:41.3]} 26... Nxf4 {[%clk 0:01:25.1]} 27. Qxf4 {[%clk 0:00:41.9]} 27... g5
{[%clk 0:01:13.4]} 28. Qxf6 {[%clk 0:00:35.4]} 28... Qh4+ {[%clk 0:01:09.9]} 29.
Kf1 {[%clk 0:00:34.6]} 29... Qh2 {[%clk 0:00:31]} 30. Nc5 {[%clk 0:00:27.1]}
30... Ka8 {[%clk 0:00:14.7]} 31. Ne4 {[%clk 0:00:21.3]} 31... Qh3+ {[%clk
0:00:07.2]} 32. Kf2 {[%clk 0:00:19.4]} 32... Qh4+ {[%clk 0:00:06]} 33. Rg3
{[%clk 0:00:17.7]} 33... Qh2+ {[%clk 0:00:04.6]} 34. Rg2 {[%clk 0:00:18.7]} 1-0

[Event "Vener-dì-Lampo"]
[Site "Chess.com"]
[Date "2020.04.24"]
[Round "4"]
[White "SanSecondoPR"]
[Black "rob_fio"]
[Result "0-1"]
[WhiteElo "1282"]
[BlackElo "1748"]
[TimeControl "300+2"]
[EndTime "12:15:08 PDT"]
[Termination "rob_fio ha vinto per abbandono"]

1. e4 {[%clk 0:05:01.9]} 1... d6 {[%clk 0:05:01.9]} 2. d4 {[%clk 0:05:02.2]}
2... Nf6 {[%clk 0:05:03.3]} 3. Nc3 {[%clk 0:05:00.7]} 3... Nbd7 {[%clk
0:05:04.6]} 4. Bb5 {[%clk 0:04:57.8]} 4... c6 {[%clk 0:05:02.9]} 5. Bc4 {[%clk
0:04:54.9]} 5... e5 {[%clk 0:05:00.5]} 6. Nf3 {[%clk 0:04:51.4]} 6... h6 {[%clk
0:05:01.4]} 7. O-O {[%clk 0:04:46.5]} 7... Qc7 {[%clk 0:05:01.5]} 8. d5 {[%clk
0:04:43.8]} 8... c5 {[%clk 0:05:02.3]} 9. Nb5 {[%clk 0:04:39.4]} 9... Qb8 {[%clk
0:05:02.9]} 10. a4 {[%clk 0:04:27.2]} 10... a6 {[%clk 0:05:04]} 11. Na3 {[%clk
0:04:25.6]} 11... Be7 {[%clk 0:05:05.3]} 12. b3 {[%clk 0:04:21.3]} 12... g5
{[%clk 0:05:05.4]} 13. Nd2 {[%clk 0:04:16.6]} 13... Nf8 {[%clk 0:05:06.3]} 14.
Qe1 {[%clk 0:04:01.1]} 14... Ng6 {[%clk 0:05:03.1]} 15. Bb2 {[%clk 0:03:49.6]}
15... Rg8 {[%clk 0:05:03.2]} 16. c3 {[%clk 0:03:44]} 16... Kf8 {[%clk 0:05:01]}
17. Nc2 {[%clk 0:03:41.1]} 17... Bd7 {[%clk 0:05:01.2]} 18. Ne3 {[%clk
0:03:38.5]} 18... Qc8 {[%clk 0:05:00.8]} 19. Be2 {[%clk 0:03:29.7]} 19... Rb8
{[%clk 0:05:01.7]} 20. Bc1 {[%clk 0:03:27]} 20... Nf4 {[%clk 0:04:55.5]} 21. Nf5
{[%clk 0:03:18.9]} 21... Bxf5 {[%clk 0:04:54.8]} 22. exf5 {[%clk 0:03:17.6]}
22... Qxf5 {[%clk 0:04:56.7]} 23. Bf3 {[%clk 0:03:11.7]} 23... g4 {[%clk
0:04:47.1]} 24. Be4 {[%clk 0:03:10.5]} 24... Nxe4 {[%clk 0:04:40.4]} 25. Nxe4
{[%clk 0:03:09.2]} 25... h5 {[%clk 0:04:34.8]} 26. Bxf4 {[%clk 0:03:06.7]} 26...
Qxf4 {[%clk 0:04:36.7]} 27. Rd1 {[%clk 0:02:55.4]} 27... h4 {[%clk 0:04:35.7]}
28. Rd3 {[%clk 0:02:52.8]} 28... f5 {[%clk 0:04:35.1]} 29. g3 {[%clk 0:02:43.1]}
29... Qxe4 {[%clk 0:04:20]} 30. f3 {[%clk 0:02:30.4]} 30... Qxd3 {[%clk
0:04:14]} 31. fxg4 {[%clk 0:02:28.9]} 31... Ke8 {[%clk 0:04:03]} 32. Rxf5 {[%clk
0:02:16]} 32... Rf8 {[%clk 0:03:48.5]} 33. Qf2 {[%clk 0:02:10.2]} 33... Rxf5
{[%clk 0:03:43]} 34. gxf5 {[%clk 0:02:07.9]} 34... Bg5 {[%clk 0:03:43.3]} 35.
Qf1 {[%clk 0:01:49.6]} 35... hxg3 {[%clk 0:03:34.9]} 36. Qg2 {[%clk 0:01:42.9]}
36... Qxf5 {[%clk 0:03:26.1]} 37. hxg3 {[%clk 0:01:37.6]} 37... Be3+ {[%clk
0:03:25.4]} 38. Kh1 {[%clk 0:01:34.4]} 38... Qh5+ {[%clk 0:03:26.1]} 0-1

[Event "Vener-dì-Lampo"]
[Site "Chess.com"]
[Date "2020.04.24"]
[Round "4"]
[White "BAKR1980"]
[Black "sirmale49"]
[Result "1-0"]
[WhiteElo "1608"]
[BlackElo "1338"]
[TimeControl "300+2"]
[EndTime "12:15:34 PDT"]
[Termination "BAKR1980 ha vinto per tempo"]

1. e4 {[%clk 0:05:01.9]} 1... e5 {[%clk 0:04:59.5]} 2. Nf3 {[%clk 0:05:02.4]}
2... Nc6 {[%clk 0:05:00]} 3. Bc4 {[%clk 0:05:02.6]} 3... Nd4 {[%clk 0:04:59.4]}
4. Nxe5 {[%clk 0:05:02.6]} 4... Qg5 {[%clk 0:04:59.3]} 5. Bxf7+ {[%clk
0:05:01.9]} 5... Ke7 {[%clk 0:04:59.2]} 6. O-O {[%clk 0:05:03.2]} 6... Qxe5
{[%clk 0:04:56.3]} 7. Bxg8 {[%clk 0:05:04.2]} 7... Rxg8 {[%clk 0:04:55.9]} 8. c3
{[%clk 0:05:04.6]} 8... Ne6 {[%clk 0:04:54.3]} 9. d4 {[%clk 0:04:58.6]} 9... Qf6
{[%clk 0:03:42.2]} 10. e5 {[%clk 0:04:54.1]} 10... Qf5 {[%clk 0:03:32.7]} 11. d5
{[%clk 0:04:49.4]} 11... Nf4 {[%clk 0:03:24.2]} 12. Qf3 {[%clk 0:04:36.5]} 12...
g5 {[%clk 0:03:17.6]} 13. d6+ {[%clk 0:04:28.1]} 13... Ke6 {[%clk 0:02:46.2]}
14. Rd1 {[%clk 0:04:14]} 14... c6 {[%clk 0:02:45.3]} 15. c4 {[%clk 0:04:12.7]}
15... Qxe5 {[%clk 0:01:50.5]} 16. Nc3 {[%clk 0:04:02.4]} 16... Bxd6 {[%clk
0:01:34.2]} 17. Bxf4 {[%clk 0:03:50.2]} 17... Qxf4 {[%clk 0:01:26.4]} 18. Re1+
{[%clk 0:03:45.5]} 18... Be5 {[%clk 0:01:00.9]} 19. Qh5 {[%clk 0:03:32.7]} 19...
Rg7 {[%clk 0:00:29.1]} 20. Re3 {[%clk 0:03:17.9]} 20... Qh4 {[%clk 0:00:13.4]}
21. Qe8+ {[%clk 0:03:00.6]} 1-0